[Event "95th Caplin Hastings Congress"]
[Site "Hastings"]
[Date "2019.12.29"]
[Round "2.48"]
[White "Garnett, John S"]
[Black "Ruane, Brendan J"]
[Result "0-1"]
[ECO "B00"]
[WhiteElo "1865"]
[BlackElo "1882"]
[Annotator "NA"]
[PlyCount "64"]
[EventDate "2019.12.28"]
[EventType "swiss"]
[EventCountry "ENG"]
[SourceTitle "playchess.com"]
[Source "ChessBase"]
[SourceQuality "1"]
[TimeControl "40/6600+30:3000+30"]

1. e4 {[%emt 0:09:33]} b6 {[%emt 0:10:13]} 2. d4 {[%emt 0:00:24]} Bb7 {[%emt 0:00:06]} 3. Nc3 {[%emt 0:00:36]} e6 {[%emt 0:00:13]} 4. a3 {[%emt 0:00:46]} g6 {[%emt 0:00:31]} 5. Nf3 {[%emt 0:00:47]} Bg7 {[%emt 0:00:12]} 6. Bd3 {[%emt 0:01:19]} Ne7 {[%emt 0:00:31]} 7. O-O {[%emt 0:00:50]} d6 {[%emt 0:00:12]} 8. Bf4 {[%emt 0:02:40]} Nd7 {[%emt 0:00:31]} 9. Qd2 {[%emt 0:01:32]} h6 {[%emt 0:00:14]} 10. Rad1 {[%emt 0:02:05]} a6 {[%emt 0:00:20]} 11. Qc1 {[%emt 0:04:03]} g5 {[%emt 0:06:40]} 12. Be3 {[%emt 0:00:38]} Ng6 {[%emt 0:00:29]} 13. Ne2 {[%emt 0:04:33]} Qe7 {[%emt 0:12:34]} 14. c3 {[%emt 0:01:31]} O-O-O {[%emt 0:00:47]} 15. Qc2 {[%emt 0:02:37]} Kb8 {[%emt 0:08:39]} 16. a4 {[%emt 0:03:18]} Nf4 {[%emt 0:12:37]} 17. Nxf4 {[%emt 0:02:18]} gxf4 {[%emt 0:01:21]} 18. Bxf4 {[%emt 0:00:27]} e5 {[%emt 0:01:24]} 19. dxe5 {[%emt 0:01:39]} dxe5 {[%emt 0:00:13]} 20. Bg3 {[%emt 0:03:17]} Bf6 {[%emt 0:01:57]} 21. Nd2 {[%emt 0:04:15]} h5 {[%emt 0:04:05]} 22. f3 {[%emt 0:02:09]} h4 {[%emt 0:04:19]} 23. Bf2 {[%emt 0:00:43]} Rdg8 {[%emt 0:00:56]} 24. Kh1 {[%emt 0:02:49]} Bg5 {[%emt 0:02:58]} 25. Nc4 {[%emt 0:03:01]} Bf4 {[%emt 0:03:42]} 26. Ne3 {[%emt 0:02:42]} Bxe3 {[%emt 0:06:14]} 27. Bxe3 {[%emt 0:00:08]} Nf6 {[%emt 0:02:35]} 28. b4 {[%emt 0:03:09]} Nh5 {[%emt 0:01:47]} 29. Qe2 {[%emt 0:02:57]} Ng3+ {[%emt 0:00:49]} 30. hxg3 {[%emt 0:00:48]} hxg3+ {[%emt 0:00:06]} 31. Kg1 {[%emt 0:00:28]} Qh4 {[%emt 0:03:27]} 32. Rfe1 {[%emt 0:01:11]} Qh1# {[%emt 0:00:13]} 0-1

[Event "95th Caplin Hastings Congress"]
[Site "Hastings"]
[Date "2019.12.29"]
[Round "2.49"]
[White "Varney, Zoe"]
[Black "Zheng, Jerry Z"]
[Result "0-1"]
[ECO "C01"]
[WhiteElo "2004"]
[BlackElo "1565"]
[Annotator "NA"]
[PlyCount "120"]
[EventDate "2019.12.28"]
[EventType "swiss"]
[EventCountry "ENG"]
[SourceTitle "playchess.com"]
[Source "ChessBase"]
[SourceQuality "1"]
[TimeControl "40/6600+30:3000+30"]

1. e4 {[%emt 0:09:32]} e6 {[%emt 0:09:39]} 2. d4 {[%emt 0:00:10]} d5 {[%emt 0:00:09]} 3. exd5 {[%emt 0:00:08]} exd5 {[%emt 0:00:10]} 4. Nf3 {[%emt 0:00:05]} Nc6 {[%emt 0:00:13]} 5. Be3 {[%emt 0:02:00]} Bd6 {[%emt 0:02:17]} 6. Nbd2 {[%emt 0:00:23]} Nge7 {[%emt 0:02:27]} 7. c3 {[%emt 0:03:09]} O-O {[%emt 0:01:58]} 8. Bd3 {[%emt 0:04:44]} Bf5 {[%emt 0:00:51]} 9. Qc2 {[%emt 0:02:09]} Qd7 {[%emt 0:02:28]} 10. O-O-O {[%emt 0:11:26]} b5 {[%emt 0:20:58]} 11. g4 {[%emt 0:06:13]} Bxd3 {[%emt 0:10:26]} 12. Qxd3 {[%emt 0:01:16]} Na5 {[%emt 0:10:32]} 13. Rdg1 {[%emt 0:09:13]} Nc4 {[%emt 0:08:26]} 14. Ng5 {[%emt 0:08:28]} g6 {[%emt 0:02:12]} 15. h4 {[%emt 0:12:58]} Qc6 {[%emt 0:06:25]} 16. h5 {[%emt 0:02:54]} h6 {[%emt 0:00:35]} 17. hxg6 {[%emt 0:38:59]} hxg5 {[%emt 0:03:21]} 18. g7 {[%emt 0:00:21]} Kxg7 {[%emt 0:06:14]} 19. Qh7+ {[%emt 0:00:04]} Kf6 {[%emt 0:00:28]} 20. Qh6+ {[%emt 0:00:04]} Ng6 {[%emt 0:00:25]} 21. Qxg5+ {[%emt 0:00:03]} Kg7 {[%emt 0:03:56]} 22. Rh7+ {[%emt 0:00:49]} Kxh7 {[%emt 0:00:29]} 23. Qh6+ {[%emt 0:00:02]} Kg8 {[%emt 0:00:37]} 24. Rh1 {[%emt 0:01:37]} Rfe8 {[%emt 0:01:31]} 25. Bg5 {[%emt 0:01:55]} Re6 {[%emt 0:05:33]} 26. f4 {[%emt 0:01:48]} Be7 {[%emt 0:03:44]} 27. Bxe7 {[%emt 0:01:26]} Rxe7 {[%emt 0:00:17]} 28. f5 {[%emt 0:00:07]} Qf6 {[%emt 0:01:48]} 29. Qh7+ {[%emt 0:00:51]} Kf8 {[%emt 0:00:09]} 30. fxg6 {[%emt 0:00:05]} Qxg6 {[%emt 0:02:33]} 31. Qxg6 {[%emt 0:00:50]} fxg6 {[%emt 0:00:16]} 32. Nxc4 {[%emt 0:00:04]} Rae8 {[%emt 0:01:51]} 33. Ne5 {[%emt 0:01:13]} Re6 {[%emt 0:00:35]} 34. Rf1+ {[%emt 0:00:31]} Ke7 {[%emt 0:02:11]} 35. Rf7+ {[%emt 0:00:19]} Kd8 {[%emt 0:00:11]} 36. Rd7+ {[%emt 0:00:15]} Kc8 {[%emt 0:00:16]} 37. Rg7 {[%emt 0:01:09]} Kb7 {[%emt 0:02:19]} 38. Rxg6 {[%emt 0:00:12]} Rxg6 {[%emt 0:00:34]} 39. Nxg6 {[%emt 0:00:02]} Re2 {[%emt 0:00:16]} 40. Ne5 {[%emt 0:00:18]} Rg2 {[%emt 0:00:39]} 41. Kb1 {[%emt 0:50:30]} Kb6 {[%emt 0:52:33]} 42. a3 {[%emt 0:00:00]} a5 {[%emt 0:00:00]} 43. Kc1 {[%emt 0:00:00]} b4 {[%emt 0:00:00]} 44. axb4 {[%emt 0:00:00]} axb4 {[%emt 0:00:00]} 45. cxb4 {[%emt 0:00:00]} Kb5 {[%emt 0:00:00]} 46. Kd1 {[%emt 0:00:00]} Rxb2 {[%emt 0:00:00]} 47. g5 {[%emt 0:00:00]} Rxb4 {[%emt 0:00:00]} 48. Nf3 {[%emt 0:00:00]} Rb2 {[%emt 0:00:00]} 49. Ke1 {[%emt 0:00:00]} Kc4 {[%emt 0:00:00]} 50. Kf1 {[%emt 0:00:00]} Kd3 {[%emt 0:00:00]} 51. g6 {[%emt 0:00:00]} Ke3 {[%emt 0:00:00]} 52. Ne5 {[%emt 0:00:00]} Rb8 {[%emt 0:00:00]} 53. Kg2 {[%emt 0:00:00]} Rg8 {[%emt 0:00:00]} 54. Kg3 {[%emt 0:00:00]} Kxd4 {[%emt 0:00:00]} 55. Nf3+ {[%emt 0:00:00]} Ke4 {[%emt 0:00:00]} 56. Nh4 {[%emt 0:00:00]} c5 {[%emt 0:00:00]} 57. Kg4 {[%emt 0:00:00]} c4 {[%emt 0:00:00]} 58. Kg5 {[%emt 0:00:00]} c3 {[%emt 0:00:00]} 59. Kf6 {[%emt 0:00:00]} c2 {[%emt 0:00:00]} 60. Kf7 {[%emt 0:00:00]} Rxg6 {[%emt 0:00:00]} 0-1

[Event "95th Caplin Hastings Congress"]
[Site "Hastings"]
[Date "2019.12.29"]
[Round "2.50"]
[White "Sandhu, Manvith"]
[Black "Sugden, John N"]
[Result "1/2-1/2"]
[ECO "B12"]
[WhiteElo "1673"]
[BlackElo "2065"]
[Annotator "NA"]
[PlyCount "43"]
[EventDate "2019.12.28"]
[EventType "swiss"]
[EventCountry "ENG"]
[SourceTitle "playchess.com"]
[Source "ChessBase"]
[SourceQuality "1"]
[TimeControl "40/6600+30:3000+30"]

1. e4 {[%emt 0:09:32]} c6 {[%emt 0:10:13]} 2. d4 {[%emt 0:00:38]} d5 {[%emt 0:00:10]} 3. e5 {[%emt 0:00:07]} Bf5 {[%emt 0:00:10]} 4. Nf3 {[%emt 0:00:15]} e6 {[%emt 0:00:37]} 5. Be2 {[%emt 0:01:05]} c5 {[%emt 0:04:34]} 6. Be3 {[%emt 0:09:25]} Nd7 {[%emt 0:03:42]} 7. c3 {[%emt 0:04:01]} Ne7 {[%emt 0:10:41]} 8. O-O {[%emt 0:00:53]} c4 {[%emt 0:13:41]} 9. Re1 {[%emt 0:05:14]} Nc6 {[%emt 0:01:34]} 10. Qc1 {[%emt 0:16:49]} Be7 {[%emt 0:02:44]} 11. h3 {[%emt 0:03:04]} b5 {[%emt 0:04:47]} 12. Bd1 {[%emt 0:01:21]} Nb6 {[%emt 0:03:07]} 13. Bc2 {[%emt 0:01:11]} Bxc2 {[%emt 0:07:21]} 14. Qxc2 {[%emt 0:00:08]} Qd7 {[%emt 0:01:14]} 15. Nbd2 {[%emt 0:04:13]} Rc8 {[%emt 0:03:17]} 16. Nf1 {[%emt 0:01:42]} b4 {[%emt 0:02:08]} 17. Bd2 {[%emt 0:04:16]} bxc3 {[%emt 0:02:36]} 18. bxc3 {[%emt 0:00:59]} Na5 {[%emt 0:02:03]} 19. Rab1 {[%emt 0:03:26]} Qa4 {[%emt 0:03:12]} 20. Qxa4+ {[%emt 0:21:54]} Nxa4 {[%emt 0:00:13]} 21. Rb5 {[%emt 0:00:05]} Nc6 {[%emt 0:00:53]} 22. Reb1 {[%emt 0:02:06]} 1/2-1/2

[Event "95th Caplin Hastings Congress"]
[Site "Hastings"]
[Date "2019.12.29"]
[Round "2.51"]
[White "Byrn, Carsten"]
[Black "Brouwer, Willem"]
[Result "0-1"]
[ECO "D00"]
[WhiteElo "1919"]
[BlackElo "1662"]
[Annotator "NA"]
[PlyCount "86"]
[EventDate "2019.12.28"]
[EventType "swiss"]
[EventCountry "ENG"]
[SourceTitle "playchess.com"]
[Source "ChessBase"]
[SourceQuality "1"]
[TimeControl "40/6600+30:3000+30"]

1. d4 {[%emt 0:09:36]} d5 {[%emt 0:09:42]} 2. Bg5 {[%emt 0:02:07]} Nd7 {[%emt 0:03:43]} 3. e3 {[%emt 0:00:17]} Ngf6 {[%emt 0:00:14]} 4. f4 {[%emt 0:01:18]} e6 {[%emt 0:01:31]} 5. Nf3 {[%emt 0:00:27]} Be7 {[%emt 0:00:45]} 6. Nbd2 {[%emt 0:00:22]} h6 {[%emt 0:05:21]} 7. Bh4 {[%emt 0:00:25]} Ng4 {[%emt 0:04:04]} 8. Bxe7 {[%emt 0:00:54]} Qxe7 {[%emt 0:00:00]} 9. Qe2 {[%emt 0:01:20]} O-O {[%emt 0:06:09]} 10. h3 {[%emt 0:00:11]} Ngf6 {[%emt 0:00:29]} 11. Ne5 {[%emt 0:02:26]} Nxe5 {[%emt 0:11:40]} 12. fxe5 {[%emt 0:00:13]} Nd7 {[%emt 0:04:52]} 13. O-O-O {[%emt 0:01:47]} c5 {[%emt 0:00:01]} 14. c3 {[%emt 0:00:11]} f6 {[%emt 0:01:10]} 15. exf6 {[%emt 0:01:21]} Nxf6 {[%emt 0:12:42]} 16. Nf3 {[%emt 0:04:10]} Ne4 {[%emt 0:01:25]} 17. Qe1 {[%emt 0:00:14]} c4 {[%emt 0:01:14]} 18. Be2 {[%emt 0:01:45]} Rf6 {[%emt 0:14:39]} 19. Rf1 {[%emt 0:00:42]} Qf8 {[%emt 0:04:57]} 20. Nd2 {[%emt 0:18:48]} Nf2 {[%emt 0:02:12]} 21. Nf3 {[%emt 0:01:32]} Nxd1 {[%emt 0:00:36]} 22. Bxd1 {[%emt 0:00:25]} b5 {[%emt 0:00:54]} 23. Bc2 {[%emt 0:00:43]} a5 {[%emt 0:00:56]} 24. e4 {[%emt 0:00:30]} b4 {[%emt 0:00:53]} 25. exd5 {[%emt 0:01:28]} exd5 {[%emt 0:01:25]} 26. Qe5 {[%emt 0:02:48]} bxc3 {[%emt 0:04:40]} 27. bxc3 {[%emt 0:00:58]} Be6 {[%emt 0:02:38]} 28. Re1 {[%emt 0:01:20]} Bf7 {[%emt 0:01:19]} 29. Qg3 {[%emt 0:01:29]} Bh5 {[%emt 0:05:32]} 30. Ne5 {[%emt 0:03:02]} Rf1 {[%emt 0:00:46]} 31. Ng4 {[%emt 0:05:35]} Rxe1+ {[%emt 0:02:26]} 32. Qxe1 {[%emt 0:00:06]} Re8 {[%emt 0:00:45]} 33. Qg3 {[%emt 0:00:40]} Bxg4 {[%emt 0:01:57]} 34. Qxg4 {[%emt 0:00:37]} Re3 {[%emt 0:05:08]} 35. Qg6 {[%emt 0:00:40]} Qa3+ {[%emt 0:02:44]} 36. Kd1 {[%emt 0:00:25]} Qxc3 {[%emt 0:00:11]} 37. Qh7+ {[%emt 0:00:34]} Kf8 {[%emt 0:01:03]} 38. Qf5+ {[%emt 0:02:01]} Ke7 {[%emt 0:00:23]} 39. Qf2 {[%emt 0:02:45]} Qxd4+ {[%emt 0:02:23]} 40. Kc1 {[%emt 0:00:08]} c3 {[%emt 0:00:35]} 41. g4 {[%emt 0:51:15]} Qe5 {[%emt 0:51:07]} 42. Qh4+ {[%emt 0:00:30]} Qf6 {[%emt 0:01:21]} 43. g5 {[%emt 0:00:34]} Qxg5 {[%emt 0:01:36]} 0-1

[Event "95th Caplin Hastings Congress"]
[Site "Hastings"]
[Date "2019.12.29"]
[Round "2.52"]
[White "Jennings, Richard"]
[Black "Cresswell, Mike J"]
[Result "1-0"]
[ECO "A49"]
[WhiteElo "1903"]
[BlackElo "1662"]
[Annotator "NA"]
[PlyCount "153"]
[EventDate "2019.12.28"]
[EventType "swiss"]
[EventCountry "ENG"]
[SourceTitle "playchess.com"]
[Source "ChessBase"]
[SourceQuality "1"]
[TimeControl "40/6600+30:3000+30"]

1. d4 {[%emt 0:10:49]} Nf6 {[%emt 0:09:36]} 2. Nf3 {[%emt 0:00:23]} g6 {[%emt 0:00:23]} 3. g3 {[%emt 0:00:08]} Bg7 {[%emt 0:00:33]} 4. Bg2 {[%emt 0:00:05]} c6 {[%emt 0:01:01]} 5. a4 {[%emt 0:02:58]} d6 {[%emt 0:02:02]} 6. O-O {[%emt 0:00:30]} O-O {[%emt 0:00:20]} 7. a5 {[%emt 0:02:43]} Na6 {[%emt 0:02:19]} 8. Nbd2 {[%emt 0:03:18]} Bd7 {[%emt 0:09:38]} 9. c3 {[%emt 0:01:37]} Qc7 {[%emt 0:05:34]} 10. e4 {[%emt 0:04:47]} Rad8 {[%emt 0:02:01]} 11. Re1 {[%emt 0:05:18]} Bc8 {[%emt 0:07:50]} 12. Qc2 {[%emt 0:08:11]} Nd7 {[%emt 0:05:04]} 13. Nf1 {[%emt 0:04:51]} e5 {[%emt 0:03:10]} 14. Bd2 {[%emt 0:11:41]} Rfe8 {[%emt 0:20:59]} 15. b4 {[%emt 0:02:01]} Nf8 {[%emt 0:06:19]} 16. Ne3 {[%emt 0:06:01]} d5 {[%emt 0:04:48]} 17. exd5 {[%emt 0:11:39]} e4 {[%emt 0:03:12]} 18. d6 {[%emt 0:04:09]} Qxd6 {[%emt 0:02:35]} 19. Ng5 {[%emt 0:04:10]} f5 {[%emt 0:04:31]} 20. Bf1 {[%emt 0:04:56]} h6 {[%emt 0:02:13]} 21. Nh3 {[%emt 0:03:24]} Kh7 {[%emt 0:02:59]} 22. Nf4 {[%emt 0:01:56]} Ne6 {[%emt 0:03:31]} 23. Nc4 {[%emt 0:02:58]} Qf8 {[%emt 0:01:55]} 24. Rad1 {[%emt 0:02:49]} Nac7 {[%emt 0:01:19]} 25. Bg2 {[%emt 0:04:41]} Nxf4 {[%emt 0:03:03]} 26. Bxf4 {[%emt 0:00:33]} Nd5 {[%emt 0:00:38]} 27. Be5 {[%emt 0:01:24]} Bxe5 {[%emt 0:03:25]} 28. Nxe5 {[%emt 0:01:20]} Nf6 {[%emt 0:00:23]} 29. f3 {[%emt 0:01:47]} exf3 {[%emt 0:01:25]} 30. Bxf3 {[%emt 0:00:40]} Nd7 {[%emt 0:01:22]} 31. Nd3 {[%emt 0:03:51]} Rxe1+ {[%emt 0:00:53]} 32. Rxe1 {[%emt 0:00:08]} Re8 {[%emt 0:00:46]} 33. Qd2 {[%emt 0:01:41]} Re7 {[%emt 0:01:27]} 34. a6 {[%emt 0:00:58]} b6 {[%emt 0:03:33]} 35. Bxc6 {[%emt 0:00:50]} Bxa6 {[%emt 0:00:10]} 36. b5 {[%emt 0:02:16]} Bc8 {[%emt 0:00:34]} 37. c4 {[%emt 0:01:20]} Qf6 {[%emt 0:00:53]} 38. Rxe7+ {[%emt 0:02:02]} Qxe7 {[%emt 0:00:07]} 39. Qe1 {[%emt 0:02:19]} Qf6 {[%emt 0:02:45]} 40. Qe3 {[%emt 0:01:30]} Nf8 {[%emt 0:00:47]} 41. Qe5 {[%emt 0:03:36]} Kg7 {[%emt 0:08:07]} 42. Qc7+ {[%emt 0:02:39]} Bd7 {[%emt 0:01:12]} 43. Qe5 {[%emt 0:16:26]} g5 {[%emt 0:07:51]} 44. Kf2 {[%emt 0:01:01]} Kg6 {[%emt 0:02:04]} 45. Qxf6+ {[%emt 0:03:25]} Kxf6 {[%emt 0:00:12]} 46. d5 {[%emt 0:02:55]} Ke7 {[%emt 0:01:33]} 47. Ke3 {[%emt 0:00:24]} Nh7 {[%emt 0:00:45]} 48. Bxd7 {[%emt 0:04:15]} Kxd7 {[%emt 0:00:10]} 49. Ne5+ {[%emt 0:00:16]} Kd6 {[%emt 0:01:09]} 50. Kd4 {[%emt 0:01:09]} Nf6 {[%emt 0:05:20]} 51. Nf7+ {[%emt 0:00:51]} Kd7 {[%emt 0:00:38]} 52. Nxh6 {[%emt 0:00:53]} f4 {[%emt 0:00:11]} 53. gxf4 {[%emt 0:01:15]} gxf4 {[%emt 0:00:11]} 54. Nf5 {[%emt 0:01:36]} Ng4 {[%emt 0:01:21]} 55. h4 {[%emt 0:02:20]} f3 {[%emt 0:01:01]} 56. Ng3 {[%emt 0:01:08]} f2 {[%emt 0:04:02]} 57. Nf1 {[%emt 0:00:19]} Kd6 {[%emt 0:01:06]} 58. h5 {[%emt 0:01:05]} Ke7 {[%emt 0:02:49]} 59. c5 {[%emt 0:02:40]} bxc5+ {[%emt 0:00:51]} 60. Kxc5 {[%emt 0:00:04]} Kd7 {[%emt 0:02:40]} 61. Kd4 {[%emt 0:00:31]} Kd6 {[%emt 0:01:56]} 62. Nd2 {[%emt 0:00:13]} Kd7 {[%emt 0:01:58]} 63. Kc5 {[%emt 0:00:48]} Nh6 {[%emt 0:01:08]} 64. Kd4 {[%emt 0:01:53]} Ng4 {[%emt 0:02:35]} 65. Kc4 {[%emt 0:02:09]} Ne3+ {[%emt 0:08:15]} 66. Kd4 {[%emt 0:01:41]} Ng4 {[%emt 0:01:48]} 67. Kc5 {[%emt 0:01:12]} Nh6 {[%emt 0:00:25]} 68. Kb4 {[%emt 0:01:17]} Kd6 {[%emt 0:02:15]} 69. Ne4+ {[%emt 0:01:12]} Kxd5 {[%emt 0:00:11]} 70. Nxf2 {[%emt 0:00:11]} Kd4 {[%emt 0:00:36]} 71. Ka5 {[%emt 0:00:42]} Kc4 {[%emt 0:00:43]} 72. Ne4 {[%emt 0:00:46]} Nf5 {[%emt 0:00:32]} 73. Ka6 {[%emt 0:01:55]} Kb4 {[%emt 0:01:49]} 74. Nf6 {[%emt 0:00:56]} Nh6 {[%emt 0:00:36]} 75. Nd5+ {[%emt 0:01:00]} Kc5 {[%emt 0:00:57]} 76. Nc3 {[%emt 0:00:00]} Ng4 {[%emt 0:00:18]} 77. Kxa7 {[%emt 0:00:00]} 1-0

[Event "95th Caplin Hastings Congress"]
[Site "Hastings"]
[Date "2019.12.29"]
[Round "2.53"]
[White "Mineev, Sergey I."]
[Black "Miller, George"]
[Result "1/2-1/2"]
[ECO "D34"]
[WhiteElo "1588"]
[BlackElo "1845"]
[Annotator "NA"]
[PlyCount "132"]
[EventDate "2019.12.28"]
[EventType "swiss"]
[EventCountry "ENG"]
[SourceTitle "playchess.com"]
[Source "ChessBase"]
[SourceQuality "1"]
[TimeControl "40/6600+30:3000+30"]

1. d4 {[%emt 0:09:32]} d5 {[%emt 0:09:39]} 2. c4 {[%emt 0:00:06]} e6 {[%emt 0:00:05]} 3. Nf3 {[%emt 0:00:09]} c5 {[%emt 0:00:11]} 4. cxd5 {[%emt 0:00:05]} exd5 {[%emt 0:00:08]} 5. g3 {[%emt 0:00:03]} Nc6 {[%emt 0:00:13]} 6. Bg2 {[%emt 0:00:15]} Nf6 {[%emt 0:00:12]} 7. O-O {[%emt 0:00:08]} Be7 {[%emt 0:01:16]} 8. dxc5 {[%emt 0:02:19]} Bxc5 {[%emt 0:00:13]} 9. Bg5 {[%emt 0:00:08]} Be7 {[%emt 0:05:52]} 10. Nc3 {[%emt 0:07:34]} O-O {[%emt 0:07:11]} 11. e3 {[%emt 0:07:27]} h6 {[%emt 0:03:09]} 12. Bxf6 {[%emt 0:07:10]} Bxf6 {[%emt 0:00:12]} 13. Qxd5 {[%emt 0:01:53]} Qxd5 {[%emt 0:02:04]} 14. Nxd5 {[%emt 0:00:07]} Bxb2 {[%emt 0:00:11]} 15. Rab1 {[%emt 0:01:24]} Ba3 {[%emt 0:01:23]} 16. Nd2 {[%emt 0:01:47]} Rb8 {[%emt 0:11:12]} 17. Nf6+ {[%emt 0:02:49]} gxf6 {[%emt 0:01:03]} 18. Bxc6 {[%emt 0:00:04]} Bh3 {[%emt 0:00:27]} 19. Bg2 {[%emt 0:00:19]} Bxg2 {[%emt 0:00:14]} 20. Kxg2 {[%emt 0:00:08]} Rfc8 {[%emt 0:00:23]} 21. Rb3 {[%emt 0:01:56]} Be7 {[%emt 0:05:18]} 22. Rfb1 {[%emt 0:01:03]} Rc2 {[%emt 0:02:36]} 23. R1b2 {[%emt 0:01:45]} Rxb2 {[%emt 0:00:33]} 24. Rxb2 {[%emt 0:00:13]} b5 {[%emt 0:00:13]} 25. Nf3 {[%emt 0:01:19]} Bc5 {[%emt 0:06:50]} 26. Nd4 {[%emt 0:01:57]} Bxd4 {[%emt 0:01:10]} 27. exd4 {[%emt 0:01:07]} Rd8 {[%emt 0:01:42]} 28. Rxb5 {[%emt 0:00:21]} Rxd4 {[%emt 0:00:11]} 29. Ra5 {[%emt 0:01:03]} Rd7 {[%emt 0:00:11]} 30. g4 {[%emt 0:01:37]} Kg7 {[%emt 0:00:47]} 31. Kg3 {[%emt 0:01:59]} Kg6 {[%emt 0:00:54]} 32. Kf4 {[%emt 0:01:25]} Rd4+ {[%emt 0:01:16]} 33. Kf3 {[%emt 0:00:46]} Rd3+ {[%emt 0:01:38]} 34. Ke4 {[%emt 0:02:15]} Rh3 {[%emt 0:03:49]} 35. Rxa7 {[%emt 0:01:12]} Rxh2 {[%emt 0:00:11]} 36. Kf3 {[%emt 0:02:35]} h5 {[%emt 0:00:54]} 37. gxh5+ {[%emt 0:03:24]} Rxh5 {[%emt 0:02:30]} 38. Ra8 {[%emt 0:00:38]} Rh3+ {[%emt 0:01:39]} 39. Kg4 {[%emt 0:01:18]} Rh2 {[%emt 0:01:12]} 40. f3 {[%emt 0:00:50]} Rg2+ {[%emt 0:01:41]} 41. Kf4 {[%emt 0:51:39]} Kg7 {[%emt 0:50:40]} 42. a4 {[%emt 0:00:27]} Rb2 {[%emt 0:03:28]} 43. Ra6 {[%emt 0:02:52]} Re2 {[%emt 0:03:24]} 44. Rb6 {[%emt 0:02:33]} Rh2 {[%emt 0:03:40]} 45. a5 {[%emt 0:03:02]} Rh5 {[%emt 0:00:28]} 46. a6 {[%emt 0:01:02]} Ra5 {[%emt 0:00:13]} 47. Ke4 {[%emt 0:05:09]} Kg6 {[%emt 0:00:38]} 48. f4 {[%emt 0:04:46]} Ra4+ {[%emt 0:00:39]} 49. Kd5 {[%emt 0:00:21]} Rxf4 {[%emt 0:02:01]} 50. Kc6 {[%emt 0:00:06]} Ra4 {[%emt 0:00:12]} 51. Kb7 {[%emt 0:00:18]} Kg5 {[%emt 0:00:26]} 52. a7 {[%emt 0:02:14]} Rxa7+ {[%emt 0:00:10]} 53. Kxa7 {[%emt 0:00:07]} f5 {[%emt 0:00:07]} 54. Rb7 {[%emt 0:03:08]} Kf4 {[%emt 0:10:16]} 55. Rxf7 {[%emt 0:00:31]} Ke4 {[%emt 0:00:07]} 56. Re7+ {[%emt 0:07:53]} Kd4 {[%emt 0:00:33]} 57. Rf7 {[%emt 0:02:22]} Ke4 {[%emt 0:01:21]} 58. Kb6 {[%emt 0:00:45]} f4 {[%emt 0:00:14]} 59. Kc5 {[%emt 0:00:39]} f3 {[%emt 0:00:33]} 60. Kc4 {[%emt 0:03:30]} Ke3 {[%emt 0:02:22]} 61. Re7+ {[%emt 0:00:30]} Kd2 {[%emt 0:00:27]} 62. Kd4 {[%emt 0:01:03]} f2 {[%emt 0:00:38]} 63. Ra7 {[%emt 0:00:33]} f1=Q {[%emt 0:00:26]} 64. Ra2+ {[%emt 0:00:05]} Ke1 {[%emt 0:00:15]} 65. Ra1+ {[%emt 0:00:07]} Kf2 {[%emt 0:00:08]} 66. Rxf1+ {[%emt 0:00:09]} Kxf1 {[%emt 0:00:12]} 1/2-1/2

[Event "95th Caplin Hastings Congress"]
[Site "Hastings"]
[Date "2019.12.29"]
[Round "2.54"]
[White "Wilson, Matthew R"]
[Black "Kearsley, Raymond J"]
[Result "0-1"]
[ECO "B01"]
[WhiteElo "1837"]
[BlackElo "1624"]
[Annotator "NA"]
[PlyCount "123"]
[EventDate "2019.12.28"]
[EventType "swiss"]
[EventCountry "ENG"]
[SourceTitle "playchess.com"]
[Source "ChessBase"]
[SourceQuality "1"]
[TimeControl "40/6600+30:3000+30"]

1. e4 {[%emt 0:09:37]} d5 {[%emt 0:09:37]} 2. exd5 {[%emt 0:00:08]} Nf6 {[%emt 0:00:06]} 3. Bb5+ {[%emt 0:00:05]} Nbd7 {[%emt 0:00:14]} 4. c4 {[%emt 0:08:18]} a6 {[%emt 0:00:08]} 5. Ba4 {[%emt 0:00:07]} b5 {[%emt 0:00:45]} 6. cxb5 {[%emt 0:00:41]} Nb6 {[%emt 0:02:12]} 7. bxa6+ {[%emt 0:09:26]} Nxa4 {[%emt 0:00:14]} 8. Qxa4+ {[%emt 0:00:07]} Bd7 {[%emt 0:00:07]} 9. Qc4 {[%emt 0:05:11]} Qc8 {[%emt 0:01:55]} 10. Nf3 {[%emt 0:05:32]} Rxa6 {[%emt 0:03:16]} 11. Nc3 {[%emt 0:06:14]} g6 {[%emt 0:16:54]} 12. Ne5 {[%emt 0:03:24]} Bg7 {[%emt 0:03:16]} 13. Nb5 {[%emt 0:05:36]} O-O {[%emt 0:12:43]} 14. O-O {[%emt 0:03:30]} Bxb5 {[%emt 0:19:25]} 15. Qxb5 {[%emt 0:00:28]} Rd8 {[%emt 0:00:09]} 16. Nc6 {[%emt 0:02:50]} Rd7 {[%emt 0:01:05]} 17. Re1 {[%emt 0:07:04]} Bf8 {[%emt 0:03:00]} 18. Re5 {[%emt 0:14:05]} Rb6 {[%emt 0:00:10]} 19. Qc4 {[%emt 0:03:05]} Qb7 {[%emt 0:02:07]} 20. d4 {[%emt 0:09:16]} Nxd5 {[%emt 0:05:26]} 21. Rxd5 {[%emt 0:00:28]} Rxc6 {[%emt 0:00:08]} 22. Rc5 {[%emt 0:07:21]} Rxc5 {[%emt 0:00:16]} 23. Qxc5 {[%emt 0:00:08]} Rd5 {[%emt 0:01:55]} 24. Qc4 {[%emt 0:04:15]} Bg7 {[%emt 0:04:49]} 25. Be3 {[%emt 0:03:20]} Rb5 {[%emt 0:01:08]} 26. b3 {[%emt 0:01:53]} c5 {[%emt 0:03:59]} 27. Rd1 {[%emt 0:03:07]} cxd4 {[%emt 0:00:48]} 28. Bxd4 {[%emt 0:01:07]} Rd5 {[%emt 0:01:20]} 29. Qa4 {[%emt 0:05:31]} e5 {[%emt 0:01:18]} 30. Qe8+ {[%emt 0:02:21]} Bf8 {[%emt 0:00:10]} 31. Rc1 {[%emt 0:00:33]} Rxd4 {[%emt 0:02:28]} 32. Qxe5 {[%emt 0:00:09]} Rd2 {[%emt 0:03:37]} 33. Qa5 {[%emt 0:00:48]} Qd7 {[%emt 0:05:59]} 34. g3 {[%emt 0:00:18]} Qd4 {[%emt 0:00:57]} 35. Rf1 {[%emt 0:00:40]} Bc5 {[%emt 0:03:36]} 36. Qa8+ {[%emt 0:00:07]} Kg7 {[%emt 0:00:09]} 37. Qf3 {[%emt 0:00:37]} Rxa2 {[%emt 0:00:35]} 38. h4 {[%emt 0:00:01]} Rd2 {[%emt 0:00:45]} 39. h5 {[%emt 0:00:15]} Rd3 {[%emt 0:02:56]} 40. h6+ {[%emt 0:01:03]} Kxh6 {[%emt 0:02:04]} 41. Qg2 {[%emt 0:09:14]} Rxb3 {[%emt 0:00:12]} 42. Re1 {[%emt 0:02:29]} Qg4 {[%emt 0:03:58]} 43. Re4 {[%emt 0:03:27]} Bxf2+ {[%emt 0:08:01]} 44. Kxf2 {[%emt 0:03:14]} Rb2+ {[%emt 0:00:27]} 45. Ke1 {[%emt 0:01:20]} Rb1+ {[%emt 0:00:49]} 46. Kf2 {[%emt 0:01:42]} Qf5+ {[%emt 0:03:05]} 47. Qf3 {[%emt 0:00:36]} Rb2+ {[%emt 0:01:13]} 48. Re2 {[%emt 0:00:01]} Rxe2+ {[%emt 0:00:52]} 49. Kxe2 {[%emt 0:00:02]} Qxf3+ {[%emt 0:00:13]} 50. Kxf3 {[%emt 0:00:02]} Kg5 {[%emt 0:00:14]} 51. g4 {[%emt 0:00:10]} f5 {[%emt 0:00:13]} 52. gxf5 {[%emt 0:00:05]} Kxf5 {[%emt 0:00:09]} 53. Kg3 {[%emt 0:00:07]} h5 {[%emt 0:00:26]} 54. Kf3 {[%emt 0:00:04]} g5 {[%emt 0:00:09]} 55. Kg3 {[%emt 0:00:01]} h4+ {[%emt 0:00:15]} 56. Kh3 {[%emt 0:00:03]} Kf4 {[%emt 0:00:16]} 57. Kg2 {[%emt 0:00:05]} g4 {[%emt 0:00:10]} 58. Kf2 {[%emt 0:00:06]} h3 {[%emt 0:00:16]} 59. Kg1 {[%emt 0:00:07]} g3 {[%emt 0:00:20]} 60. Kh1 {[%emt 0:00:04]} Kf3 {[%emt 0:00:21]} 61. Kg1 {[%emt 0:00:01]} g2 {[%emt 0:00:18]} 62. Kh2 {[%emt 0:00:04]} 0-1